fUST/lending_fUST_20250208
["ID","MTS","AMOUNT","RATE_DAILY","PERIOD"]
[352180202,1738978245987,-989.57,0.00011232,2]
[352180204,1738978245996,-500.0,0.00011232,2]
[352180206,1738978246006,-952.46,0.00011232,2]
[352180208,1738978246015,-216.03301622,0.00011232,2]
[352180210,1738978246025,-500.0,0.00011232,2]
[352180212,1738978246034,-500.0,0.00011232,2]
[352180214,1738978246043,-500.0,0.00011232,2]
[352180216,1738978246052,-787.96,0.00011232,2]
[352180218,1738978246062,-500.0,0.00011232,2]
[352180220,1738978246071,-500.0,0.00011232,2]
[352180221,1738978246081,-500.0,0.00011232,2]
[352180222,1738978246090,-500.0,0.00011232,2]
[352180223,1738978246100,-500.0,0.00011232,2]
[352180224,1738978246109,-500.0,0.00011232,2]
[352180225,1738978246119,-500.0,0.00011232,2]
[352180226,1738978246128,-500.0,0.00011232,2]
[352180227,1738978246139,-500.0,0.00011232,2]
[352180228,1738978246148,-500.0,0.00011232,2]
[352180230,1738978246157,-500.0,0.00011232,2]
[352180232,1738978246167,-500.0,0.00011232,2]
[352180233,1738978246177,-500.0,0.00011232,2]
[352180234,1738978246187,-500.0,0.00011232,2]
[352180235,1738978246197,-500.0,0.00011232,2]
[352180236,1738978246208,-500.0,0.00011232,2]
[352180237,1738978246219,-500.0,0.00011232,2]
[352180238,1738978246229,-500.0,0.00011232,2]
[352180239,1738978246238,-500.0,0.00011232,2]
[352180240,1738978246248,-215.59,0.00011232,2]
[352180241,1738978246258,-929.01,0.00011232,2]
[352180242,1738978246267,-500.0,0.00011232,2]
[352180243,1738978246276,-500.0,0.00011232,2]
[352180244,1738978246286,-500.0,0.00011232,2]
[352180245,1738978246295,-500.0,0.00011232,2]
[352180246,1738978246308,-500.0,0.00011232,2]
[352180247,1738978246331,-500.0,0.00011232,2]
[352180248,1738978246353,-500.0,0.00011232,2]
[352180249,1738978246369,-364.35,0.00011232,2]
[352180250,1738978246379,-764.8,0.00011232,2]
[352180251,1738978246388,-500.0,0.00011232,2]
[352180252,1738978246397,-500.0,0.00011232,2]
[352180253,1738978246406,-500.0,0.00011232,2]
[352180254,1738978246415,-500.0,0.00011232,2]
[352180255,1738978246425,-500.0,0.00011232,2]
[352180256,1738978246436,-500.0,0.00011232,2]
[352180257,1738978246446,-500.0,0.00011232,2]
[352180258,1738978246455,-500.0,0.00011232,2]
[352180259,1738978246465,-500.0,0.00011232,2]
[352180260,1738978246474,-500.0,0.00011232,2]
[352180261,1738978246484,-204.03665663,0.00011232,2]
[352180262,1738978246493,-2461.8,0.00011232,2]
[352180263,1738978246503,-500.0,0.00011232,2]
[352180264,1738978246514,-500.0,0.00011232,2]
[352180265,1738978246523,-500.0,0.00011232,2]
[352180266,1738978246533,-500.0,0.00011232,2]
[352180267,1738978246543,-500.0,0.00011232,2]
[352180268,1738978246556,-500.0,0.00011232,2]
[352180269,1738978246567,-1087.07,0.00011232,2]
[352180270,1738978246576,-500.0,0.00011232,2]
[352180271,1738978246586,-500.0,0.00011232,2]
[352180272,1738978246596,-959.71,0.00011232,2]
[352180273,1738978246606,-500.0,0.00011232,2]
[352180274,1738978246616,-751.1,0.00011232,2]
[352180275,1738978246626,-500.0,0.00011232,2]
[352180276,1738978246637,-500.0,0.00011232,2]
[352180277,1738978246647,-544.81,0.00011232,2]
[352180278,1738978246657,-500.0,0.00011232,2]
[352180279,1738978246666,-500.0,0.00011232,2]
[352180280,1738978246675,-3308.95,0.00011232,2]
[352180281,1738978246685,-803.61,0.00011232,2]
[352180282,1738978246696,-521.23,0.00011232,2]
[352180283,1738978246705,-10811.21,0.00011232,2]
[352180284,1738978246715,-504.71,0.00011232,2]
[352180285,1738978246725,-500.0,0.00011232,2]
[352180286,1738978246735,-500.0,0.00011232,2]
[352180287,1738978246745,-500.0,0.00011232,2]
[352180288,1738978246754,-1138.64,0.00011232,2]
[352180289,1738978246764,-23976.61,0.00011232,2]
[352180290,1738978246773,-500.0,0.00011232,2]
[352180291,1738978246782,-500.0,0.00011232,2]
[352180292,1738978246792,-2605.61,0.00011232,2]
[352180293,1738978246802,-500.0,0.00011232,2]
[352180294,1738978246812,-500.0,0.00011232,2]
[352180295,1738978246822,-1645.89,0.00011232,2]
[352180296,1738978246831,-500.0,0.00011232,2]
[352180297,1738978246841,-500.0,0.00011232,2]
[352180298,1738978246851,-500.0,0.00011232,2]
[352180299,1738978246866,-1212.74,0.00011232,2]
[352180300,1738978246876,-500.0,0.00011232,2]
[352180301,1738978246886,-1281.46,0.00011232,2]
[352180302,1738978246896,-500.0,0.00011232,2]
[352180303,1738978246906,-383.13061394,0.00011232,2]
[352180304,1738978246917,-500.0,0.00011232,2]
[352180305,1738978246927,-500.0,0.00011232,2]
[352180306,1738978246937,-500.0,0.00011232,2]
[352180307,1738978246947,-500.0,0.00011232,2]
[352180308,1738978246956,-500.0,0.00011232,2]
[352180309,1738978246966,-500.0,0.00011232,2]
[352180310,1738978246975,-500.0,0.00011232,2]
[352180311,1738978246985,-1304.05,0.00011232,2]
[352180312,1738978246995,-1261.46,0.00011232,2]
[352180313,1738978247004,-650.66,0.00011232,2]
[352180314,1738978247013,-710.1,0.00011232,2]
[352180315,1738978247023,-500.0,0.00011232,2]
[352180316,1738978247032,-507.83850901,0.00011232,2]
[352180317,1738978247042,-500.0,0.00011232,2]
[352180318,1738978247051,-500.0,0.00011232,2]
[352180319,1738978247061,-224.06990203,0.00011232,2]
[352180320,1738978247071,-500.0,0.00011232,2]
[352180321,1738978247080,-796.17,0.00011232,2]
[352180322,1738978247090,-500.0,0.00011232,2]
[352180323,1738978247100,-783.75877685,0.00011232,2]
[352180324,1738978247110,-500.0,0.00011232,2]
[352180325,1738978247120,-500.0,0.00011232,2]
[352180326,1738978247129,-500.0,0.00011232,2]
[352180327,1738978247139,-500.0,0.00011232,2]
[352180328,1738978247148,-500.0,0.00011232,2]
[352180329,1738978247159,-500.0,0.00011232,2]
[352180330,1738978247169,-500.0,0.00011232,2]
[352180331,1738978247179,-500.0,0.00011232,2]
[352180332,1738978247189,-1111.45,0.00011232,2]
[352180333,1738978247199,-500.0,0.00011232,2]
[352180334,1738978247209,-500.0,0.00011232,2]
[352180335,1738978247218,-500.0,0.00011232,2]
[352180336,1738978247228,-500.0,0.00011232,2]
[352180337,1738978247237,-500.0,0.00011232,2]
[352180338,1738978247246,-500.0,0.00011232,2]
[352180339,1738978247256,-2234.33,0.00011232,2]
[352180340,1738978247265,-500.0,0.00011232,2]
[352180341,1738978247275,-500.0,0.00011232,2]
[352180342,1738978247285,-738.88,0.00011232,2]
[352180343,1738978247295,-500.0,0.00011232,2]
[352180344,1738978247306,-284.97468103,0.00011232,2]
[352180345,1738978247315,-500.0,0.00011232,2]
[352180346,1738978247325,-500.0,0.00011232,2]
[352180347,1738978247335,-500.0,0.00011232,2]
[352180348,1738978247344,-1361.43,0.00011232,2]
[352180349,1738978247353,-539.64,0.00011232,2]
[352180350,1738978247363,-500.0,0.00011232,2]
[352180351,1738978247372,-500.0,0.00011232,2]
[352180352,1738978247382,-500.0,0.00011232,2]
[352180353,1738978247391,-168.18522713,0.00011232,2]
[352180354,1738978247400,-500.0,0.00011232,2]
[352180355,1738978247410,-500.0,0.00011232,2]
[352180356,1738978247420,-4266.02,0.00011232,2]
[352180357,1738978247430,-986.7,0.00011232,2]
[352180358,1738978247440,-500.0,0.00011232,2]
[352180359,1738978247450,-500.0,0.00011232,2]
[352180360,1738978247459,-500.0,0.00011232,2]
[352180361,1738978247469,-500.0,0.00011232,2]
[352180362,1738978247479,-2461.45,0.00011232,2]
[352180363,1738978247489,-500.0,0.00011232,2]
[352180364,1738978247498,-500.0,0.00011232,2]
[352180365,1738978247508,-500.0,0.00011232,2]
[352180366,1738978247518,-500.0,0.00011232,2]
[352180367,1738978247527,-500.0,0.00011232,2]
[352180368,1738978247537,-637.42,0.00011232,2]
[352180369,1738978247547,-2178.49,0.00011232,2]
[352180370,1738978247561,-543.16,0.00011232,2]
[352180371,1738978247571,-500.0,0.00011232,2]
[352180372,1738978247580,-1068.9,0.00011232,2]
[352180373,1738978247590,-500.0,0.00011232,2]
[352180374,1738978247599,-917.91,0.00011232,2]
[352180375,1738978247609,-500.0,0.00011232,2]
[352180376,1738978247618,-500.0,0.00011232,2]
[352180377,1738978247629,-3069.74,0.00011232,2]
[352180378,1738978247638,-825.57,0.00011232,2]
[352180379,1738978247649,-638.51988366,0.00011232,2]
[352180380,1738978247658,-500.0,0.00011232,2]
[352180381,1738978247667,-500.0,0.00011232,2]
[352180382,1738978247677,-502.71699891,0.00011232,2]
[352180383,1738978247686,-952.52,0.00011232,2]
[352180384,1738978247696,-500.0,0.00011232,2]
[352180385,1738978247706,-1160.37,0.00011232,2]
[352180386,1738978247715,-500.0,0.00011232,2]
[352180387,1738978247725,-360.04309893,0.00011232,2]
[352180388,1738978247734,-573.64,0.00011232,2]
[352180389,1738978247744,-10233.27,0.00011232,2]
[352180390,1738978247753,-500.0,0.00011232,2]
[352180391,1738978247764,-500.0,0.00011232,2]
[352180392,1738978247774,-500.0,0.00011232,2]
[352180393,1738978247783,-1264.89,0.00011232,2]
[352180394,1738978247793,-500.0,0.00011259,2]
[352180395,1738978247803,-913.9075777,0.00011259,2]
[352180396,1738978247812,-500.0,0.00011262,2]
[352180397,1738978247822,-500.0,0.00011262,2]
[352180398,1738978247831,-500.0,0.00011262,2]
[352180399,1738978247840,-500.0,0.00011262,2]
[352180400,1738978247850,-500.0,0.00011262,2]
[352180401,1738978247860,-500.83311623,0.00011267,2]
[352180402,1738978247870,-184.39881509,0.00011269,2]
[352180403,1738978247879,-151.0,0.00011369,2]
[352180404,1738978247888,-151.0,0.00011369,2]
[352180405,1738978247898,-500.0,0.00011369,2]
[352180406,1738978247908,-500.0,0.00011369,2]
[352180407,1738978247918,-542.31,0.00011369,2]
[352180408,1738978247929,-500.0,0.00011369,2]
[352180409,1738978247939,-556.22,0.00011369,2]
[352180410,1738978247950,-500.0,0.00011369,2]
[352180411,1738978247960,-500.0,0.00011369,2]
[352180412,1738978247970,-500.0,0.00011369,2]
[352180413,1738978247980,-500.0,0.00011369,2]
[352180414,1738978247990,-500.0,0.00011369,2]
[352180415,1738978248000,-500.0,0.00011369,2]
[352180416,1738978248010,-680.76,0.00011369,2]
[352180417,1738978248020,-411.54,0.00011369,2]
[352180418,1738978248031,-567.51,0.00011369,2]
[352180419,1738978248041,-591.15095071,0.00011369,2]
[352180420,1738978248052,-782.98,0.00011369,2]
[352180421,1738978248062,-500.0,0.00011369,2]
[352180422,1738978248072,-500.0,0.00011369,2]
[352180423,1738978248082,-500.0,0.00011369,2]
[352180424,1738978248093,-500.0,0.00011369,2]
[352180425,1738978248103,-989.57,0.00011369,2]
[352180426,1738978248113,-500.0,0.00011369,2]
[352180427,1738978248123,-952.46,0.00011369,2]
[352180428,1738978248132,-500.0,0.00011369,2]
[352180429,1738978248141,-500.0,0.00011369,2]
[352180430,1738978248152,-500.0,0.00011369,2]
[352180431,1738978248161,-787.96,0.00011369,2]
[352180432,1738978248171,-500.0,0.00011369,2]
[352180433,1738978248181,-500.0,0.00011369,2]
[352180434,1738978248191,-500.0,0.00011369,2]
[352180435,1738978248201,-500.0,0.00011369,2]
[352180436,1738978248212,-500.0,0.00011369,2]
[352180437,1738978248222,-929.01,0.00011369,2]
[352180438,1738978248232,-500.0,0.00011369,2]
[352180439,1738978248243,-500.0,0.00011369,2]
[352180440,1738978248254,-500.0,0.00011369,2]
[352180441,1738978248264,-500.0,0.00011369,2]
[352180442,1738978248275,-622.88155614,0.00011369,2]
[352180443,1738978248285,-764.8,0.00011369,2]
[352180444,1738978248295,-500.0,0.00011369,2]
[352180445,1738978248305,-500.0,0.00011369,2]
[352180446,1738978248314,-500.0,0.00011369,2]
[352180447,1738978248324,-198.4,0.00011369,2]
[352180448,1738978248334,-500.0,0.00011369,2]
[352180449,1738978248344,-500.0,0.00011369,2]
[352180450,1738978248354,-2461.8,0.00011369,2]
[352180451,1738978248363,-500.0,0.00011369,2]
[352180452,1738978248373,-1087.07,0.00011369,2]
[352180453,1738978248382,-959.71,0.00011369,2]
[352180454,1738978248392,-500.0,0.00011369,2]
[352180455,1738978248402,-751.1,0.00011369,2]
[352180456,1738978248412,-500.0,0.00011369,2]
[352180457,1738978248422,-544.81,0.00011369,2]
[352180458,1738978248431,-3308.95,0.00011369,2]
[352180459,1738978248441,-803.61,0.00011369,2]
[352180460,1738978248450,-10811.21,0.00011369,2]
[352180461,1738978248460,-504.71,0.00011369,2]
[352180462,1738978248470,-500.0,0.00011369,2]
[352180463,1738978248625,-1138.64,0.00011369,2]
[352180464,1738978248636,-23976.61,0.00011369,2]
[352180465,1738978248647,-2605.61,0.00011369,2]
[352180466,1738978248657,-500.0,0.00011369,2]
[352180467,1738978248667,-1645.89,0.00011369,2]
[352180468,1738978248677,-500.0,0.00011369,2]
[352180469,1738978248688,-500.0,0.00011369,2]
[352180470,1738978248698,-1212.74,0.00011369,2]
[352180471,1738978248707,-500.0,0.00011369,2]
[352180472,1738978248717,-1281.46,0.00011369,2]
[352180473,1738978248727,-219.09,0.00011369,2]
[352180474,1738978248737,-500.0,0.00011369,2]
[352180475,1738978248747,-500.0,0.00011369,2]
[352180476,1738978248757,-500.0,0.00011369,2]
[352180477,1738978248766,-1304.05,0.00011369,2]
[352180478,1738978248776,-1261.46,0.00011369,2]
[352180479,1738978248785,-650.66,0.00011369,2]
[352180480,1738978248795,-710.1,0.00011369,2]
[352180481,1738978248804,-500.0,0.00011369,2]
[352180482,1738978248813,-500.0,0.00011369,2]
[352180483,1738978248823,-500.0,0.00011369,2]
[352180484,1738978248832,-500.0,0.00011369,2]
[352180485,1738978248842,-796.17,0.00011369,2]
[352180486,1738978248852,-500.0,0.00011369,2]
[352180487,1738978248861,-500.0,0.00011369,2]
[352180488,1738978248871,-500.0,0.00011369,2]
[352180489,1738978248881,-500.0,0.00011369,2]
[352180490,1738978248890,-500.0,0.00011369,2]
[352180491,1738978248900,-500.0,0.00011369,2]
[352180492,1738978248910,-500.0,0.00011369,2]
[352180493,1738978248920,-1111.45,0.00011369,2]
[352180494,1738978248930,-500.0,0.00011369,2]
[352180495,1738978248940,-500.0,0.00011369,2]
[352180496,1738978248952,-500.0,0.00011369,2]
[352180497,1738978248962,-500.0,0.00011369,2]
[352180498,1738978248972,-2234.33,0.00011369,2]
[352180499,1738978248983,-500.0,0.00011369,2]
[352180500,1738978248993,-500.0,0.00011369,2]
[352180501,1738978249005,-738.88,0.00011369,2]
[352180502,1738978249017,-500.0,0.00011369,2]
[352180503,1738978249027,-500.0,0.00011369,2]
[352180504,1738978249038,-500.0,0.00011369,2]
[352180505,1738978249049,-1361.43,0.00011369,2]
[352180506,1738978249059,-539.64,0.00011369,2]
[352180507,1738978249070,-500.0,0.00011369,2]
[352180508,1738978249080,-500.0,0.00011369,2]
[352180509,1738978249090,-500.0,0.00011369,2]
[352180510,1738978249099,-500.0,0.00011369,2]
[352180511,1738978249109,-4266.02,0.00011369,2]
[352180512,1738978249119,-986.7,0.00011369,2]
[352180513,1738978249128,-500.0,0.00011369,2]
[352180514,1738978249138,-500.0,0.00011369,2]
[352180515,1738978249148,-500.0,0.00011369,2]
[352180516,1738978249157,-2461.45,0.00011369,2]
[352180517,1738978249167,-500.0,0.00011369,2]
[352180518,1738978249177,-500.0,0.00011369,2]
[352180519,1738978249187,-500.0,0.00011369,2]
[352180520,1738978249199,-500.0,0.00011369,2]
[352180521,1738978249208,-637.42,0.00011369,2]
[352180522,1738978249218,-2178.49,0.00011369,2]
[352180523,1738978249227,-543.16,0.00011369,2]
[352180524,1738978249236,-500.0,0.00011369,2]
[352180525,1738978249245,-1068.9,0.00011369,2]
[352180526,1738978249255,-500.0,0.00011369,2]
[352180527,1738978249264,-917.91,0.00011369,2]
[352180528,1738978249274,-504.28951863,0.00011369,2]
[352180529,1738978249283,-500.0,0.00011369,2]
[352180530,1738978249292,-3069.74,0.00011369,2]
[352180531,1738978249301,-825.57,0.00011369,2]
[352180532,1738978249310,-500.0,0.00011369,2]
[352180533,1738978249320,-503.02695759,0.00011369,2]
[352180534,1738978249329,-952.52,0.00011369,2]
[352180535,1738978249339,-405.98396804,0.00011369,2]
[352180536,1738978249348,-1160.37,0.00011369,2]
[352180537,1738978249357,-502.16586484,0.00011369,2]
[352180538,1738978249368,-573.64,0.00011369,2]
[352180539,1738978249377,-10233.27,0.00011369,2]
[352180540,1738978249386,-500.0,0.00011369,2]
[352180541,1738978249395,-500.0,0.00011369,2]
[352180542,1738978249405,-504.18997682,0.00011369,2]
[352180543,1738978249415,-1264.89,0.00011369,2]
[352180544,1738978249424,-184.39881509,0.00011406,2]
[352180545,1738978249434,-151.0,0.000115,2]
[352180546,1738978249445,-166.587289,0.00011506,2]
[352180547,1738978249454,-151.0,0.00011506,2]
[352180548,1738978249464,-500.0,0.00011506,2]
[352180549,1738978249473,-500.0,0.00011506,2]
[352180550,1738978249483,-542.31,0.00011506,2]
[352180551,1738978249492,-500.0,0.00011506,2]
[352180552,1738978249502,-556.22,0.00011506,2]
[352180553,1738978249511,-500.0,0.00011506,2]
[352180554,1738978249520,-500.0,0.00011506,2]
[352180555,1738978249530,-264.84,0.00011506,2]
[352180556,1738978249539,-500.0,0.00011506,2]
[352180557,1738978249549,-680.76,0.00011506,2]
[352180558,1738978249562,-567.51,0.00011506,2]
[352180559,1738978249572,-782.98,0.00011506,2]
[352180560,1738978249581,-500.0,0.00011506,2]
[352180561,1738978249591,-500.0,0.00011506,2]
[352180562,1738978249601,-500.0,0.00011506,2]
[352180563,1738978249611,-235.89,0.00011506,2]
[352180564,1738978249620,-989.57,0.00011506,2]
[352180565,1738978249630,-500.0,0.00011506,2]
[352180566,1738978249640,-952.46,0.00011506,2]
[352180567,1738978249650,-356.36,0.00011506,2]
[352180568,1738978249659,-500.0,0.00011506,2]
[352180569,1738978249669,-500.0,0.00011506,2]
[352180570,1738978249678,-787.96,0.00011506,2]
[352180571,1738978249687,-500.0,0.00011506,2]
[352180572,1738978249696,-396.48,0.00011506,2]
[352180573,1738978249706,-575.39,0.00011506,2]
[352180574,1738978249715,-500.0,0.00011506,2]
[352180575,1738978249729,-929.01,0.00011506,2]
[352180576,1738978249738,-500.0,0.00011506,2]
[352180577,1738978249748,-191.25,0.00011506,2]
[352180578,1738978249757,-500.0,0.00011506,2]
[352180579,1738978249767,-764.8,0.00011506,2]
[352180580,1738978249776,-500.0,0.00011506,2]
[352180581,1738978249786,-500.0,0.00011506,2]
[352180582,1738978249795,-500.0,0.00011506,2]
[352180583,1738978249804,-500.0,0.00011506,2]
[352180584,1738978249814,-2461.8,0.00011506,2]
[352180585,1738978249823,-500.0,0.00011506,2]
[352180586,1738978249834,-1087.07,0.00011506,2]
[352180587,1738978249843,-959.71,0.00011506,2]
[352180588,1738978249852,-445.52,0.00011506,2]
[352180589,1738978249861,-751.1,0.00011506,2]
[352180590,1738978249871,-544.81,0.00011506,2]
[352180591,1738978249880,-3308.95,0.00011506,2]
[352180592,1738978249889,-803.61,0.00011506,2]
[352180593,1738978249898,-10811.21,0.00011506,2]
[352180594,1738978249908,-504.71,0.00011506,2]
[352180595,1738978249916,-500.0,0.00011506,2]
[352180596,1738978249926,-1138.64,0.00011506,2]
[352180597,1738978249935,-23976.61,0.00011506,2]
[352180598,1738978249945,-2605.61,0.00011506,2]
[352180599,1738978249954,-500.0,0.00011506,2]
[352180600,1738978249963,-1645.89,0.00011506,2]
[352180601,1738978249973,-1212.74,0.00011506,2]
[352180602,1738978249982,-500.0,0.00011506,2]
[352180603,1738978249991,-1281.46,0.00011506,2]
[352180604,1738978250000,-500.0,0.00011506,2]
[352180605,1738978250010,-500.0,0.00011506,2]
[352180606,1738978250019,-1304.05,0.00011506,2]
[352180607,1738978250029,-1261.46,0.00011506,2]
[352180608,1738978250038,-650.66,0.00011506,2]
[352180609,1738978250048,-710.1,0.00011506,2]
[352180610,1738978250058,-500.0,0.00011506,2]
[352180611,1738978250067,-796.17,0.00011506,2]
[352180612,1738978250076,-500.0,0.00011506,2]
[352180613,1738978250086,-500.0,0.00011506,2]
[352180614,1738978250095,-500.0,0.00011506,2]
[352180615,1738978250105,-1111.45,0.00011506,2]
[352180616,1738978250114,-500.0,0.00011506,2]
[352180617,1738978250123,-500.0,0.00011506,2]
[352180618,1738978250133,-2234.33,0.00011506,2]
[352180619,1738978250142,-500.0,0.00011506,2]
[352180620,1738978250151,-500.0,0.00011506,2]
[352180621,1738978250160,-738.88,0.00011506,2]
[352180622,1738978250170,-282.60723999,0.00011506,2]
[352180623,1738978250179,-500.0,0.00011506,2]
[352180624,1738978250188,-500.0,0.00011506,2]
[352180625,1738978250197,-1361.43,0.00011506,2]
[352180626,1738978250207,-539.64,0.00011506,2]
[352180627,1738978250216,-510.12,0.00011506,2]
[352180628,1738978250225,-4266.02,0.00011506,2]
[352180629,1738978250235,-986.7,0.00011506,2]
[352180630,1738978250244,-500.0,0.00011506,2]
[352180631,1738978250253,-500.0,0.00011506,2]
[352180632,1738978250262,-2461.45,0.00011506,2]
[352180633,1738978250271,-500.0,0.00011506,2]
[352180634,1738978250281,-500.0,0.00011506,2]
[352180635,1738978250290,-637.42,0.00011506,2]
[352180636,1738978250299,-2178.49,0.00011506,2]
[352180637,1738978250308,-543.16,0.00011506,2]
[352180638,1738978250318,-502.96487902,0.00011506,2]
[352180639,1738978250327,-1068.9,0.00011506,2]
[352180640,1738978250337,-500.0,0.00011506,2]
[352180641,1738978250347,-917.91,0.00011506,2]
[352180642,1738978250356,-500.0,0.00011506,2]
[352180643,1738978250366,-3069.74,0.00011506,2]
[352180644,1738978250377,-825.57,0.00011506,2]
[352180645,1738978250386,-507.64978274,0.00011506,2]
[352180646,1738978250396,-952.52,0.00011506,2]
[352180647,1738978250407,-1160.37,0.00011506,2]
[352180648,1738978250418,-573.64,0.00011506,2]
[352180649,1738978250427,-10233.27,0.00011506,2]
[352180650,1738978250437,-500.0,0.00011506,2]
[352180651,1738978250447,-500.0,0.00011506,2]
[352180652,1738978250457,-1264.89,0.00011506,2]
[352180653,1738978250466,-13264.03974987,0.00011526,2]
[352180654,1738978250476,-153.0,0.00011534,2]
[352180655,1738978250486,-512.55,0.00011572,2]
[352180656,1738978250498,-1164.0,0.00011578,6]
[352180657,1738978250508,-151.0,0.000116,2]
[352180658,1738978250518,-152.904828,0.00011643,2]
[352180659,1738978250527,-500.0,0.00011643,2]
[352180660,1738978250537,-500.0,0.00011643,2]
[352180661,1738978250547,-542.31,0.00011643,2]
[352180662,1738978250564,-500.0,0.00011643,2]
[352180663,1738978250574,-556.22,0.00011643,2]
[352180664,1738978250585,-500.0,0.00011643,2]
[352180665,1738978250595,-442.7,0.00011643,2]
[352180666,1738978250603,-500.0,0.00011643,2]
[352180667,1738978250612,-680.76,0.00011643,2]
[352180668,1738978250623,-567.51,0.00011643,2]
[352180669,1738978250633,-782.98,0.00011643,2]
[352180670,1738978250642,-500.0,0.00011643,2]
[352180671,1738978250652,-500.0,0.00011643,2]
[352180672,1738978250662,-554.3,0.00011643,2]
[352180673,1738978250671,-989.57,0.00011643,2]
[352180674,1738978250680,-500.0,0.00011643,2]
[352180675,1738978250690,-952.46,0.00011643,2]
[352180676,1738978250700,-153.84,0.00011643,2]
[352180677,1738978250710,-500.0,0.00011643,2]
[352180678,1738978250719,-787.96,0.00011643,2]
[352180679,1738978250729,-500.0,0.00011643,2]
[352180680,1738978250738,-500.0,0.00011643,2]
[352180681,1738978250747,-929.01,0.00011643,2]
[352180682,1738978250757,-500.0,0.00011643,2]
[352180683,1738978250767,-500.0,0.00011643,2]
[352180684,1738978250776,-764.8,0.00011643,2]
[352180685,1738978250787,-500.0,0.00011643,2]
[352180686,1738978250796,-500.0,0.00011643,2]
[352180687,1738978250806,-500.0,0.00011643,2]
[352180688,1738978250816,-500.0,0.00011643,2]
[352180689,1738978250826,-2461.8,0.00011643,2]
[352180690,1738978250835,-500.0,0.00011643,2]
[352180691,1738978250846,-1087.07,0.00011643,2]
[352180692,1738978250854,-959.71,0.00011643,2]
[352180693,1738978250864,-751.1,0.00011643,2]
[352180694,1738978250874,-544.81,0.00011643,2]
[352180695,1738978250884,-3308.95,0.00011643,2]
[352180696,1738978250894,-803.61,0.00011643,2]
[352180697,1738978250903,-10811.21,0.00011643,2]
[352180698,1738978250914,-504.71,0.00011643,2]
[352180699,1738978250923,-500.0,0.00011643,2]
[352180700,1738978250933,-1138.64,0.00011643,2]
[352180701,1738978250942,-23976.61,0.00011643,2]
[352180702,1738978250952,-2605.61,0.00011643,2]
[352180703,1738978250962,-500.0,0.00011643,2]
[352180704,1738978250972,-1645.89,0.00011643,2]
[352180705,1738978250983,-1212.74,0.00011643,2]
[352180706,1738978250993,-500.0,0.00011643,2]
[352180707,1738978251004,-1281.46,0.00011643,2]
[352180708,1738978251013,-500.0,0.00011643,2]
[352180709,1738978251026,-1304.05,0.00011643,2]
[352180710,1738978251035,-1261.46,0.00011643,2]
[352180711,1738978251045,-650.66,0.00011643,2]
[352180712,1738978251054,-710.1,0.00011643,2]